Cogmind - Beta 12 @@@ ROGUE MODE // 2023.04.05 @ 01:53:48 Player: Red Box Result: Destroyed by Striker with Plasma Lance Performance ------------- Evolutions (4) 2000 Regions Visited (14) 2800 Robots Destroyed (198) 990 Value Destroyed (10016) 10016 Prototype IDs (15) 300 Alien Tech Used (0) 0 Bonus (7034) 7034 TOTAL SCORE: 23140 Bonus ------- High Alert Combat Kills 977 Follower Combat Kills 2126 Entered Garrisons 1000 Used RIF Installer 3000 Friendly Fire -69 Cogmind --------- Core Integrity 0/850 Matter 290/300 Energy 58/290 System Corruption 4% Temperature Hot (203) Movement Treading (560) Ox5 Location -6/Garrison Parts ------- > --- POWER (1) -------- Improved Deuterium Engine > --- PROPULSION (2) --- Light Treads > --- UTILITY (10) ----- Huge Storage Unit Core Analyzer Layered Medium Armor Plating Improved Focal Shield Thermal Defense Suite Relay Coupler [Swarmer] (22) Relay Coupler [Grunt] (9) Relay Coupler [Sentry] (2) Relay Coupler [Specialist] (18) Relay Coupler [Hunter] (5) > --- WEAPON (2) ------- Tesla Rifle Improved EM Pulse Cannon > --- INVENTORY (25) --- Fission Core Advanced Medium Treads Advanced Coolant Injector Energy Well (350) Matter Compressor (250) Advanced Terrain Scanner Experimental Core Analyzer Advanced Particle Charger Improved Light Armor Plating Relay Coupler [NC] (30) Relay Coupler [Swarmer] (36) Relay Coupler [Grunt] (25) Relay Coupler [Grunt] (22) Relay Coupler [Sentry] (22) Relay Coupler [Sentry] (22) Relay Coupler [Sentry] (23) Relay Coupler [Heavy] (12) Advanced Trap Extractor (0/8) Heavy Disruptor Cannon Magnetic Acceleration Cannon Heavy Gauss Cannon Improved Proton Missile Launcher Force Lance Peak State ------------ > --- POWER ------------ Improved Deuterium Engine > --- PROPULSION ------- Improved Heavy Treads > --- UTILITY ---------- Huge Storage Unit Advanced Terrain Scanner Core Analyzer Advanced Transmission Jammer Hardened Medium Armor Plating Remote Force Field Relay Coupler [Swarmer] Relay Coupler [Grunt] Relay Coupler [Sentry] Advanced Trap Extractor > --- WEAPON ----------- Dispersion Rifle Heavy Plasma Cannon > --- INVENTORY -------- Antimatter Reactor Advanced Medium Treads Improved Heavy Treads Advanced Coolant Injector High-capacity Storage Unit Energy Well Advanced Particle Charger Hardened Medium Armor Plating Hardened Medium Armor Plating Relay Coupler [NC] Relay Coupler [Grunt] Relay Coupler [Grunt] Relay Coupler [Sentry] Relay Coupler [Specialist] Relay Coupler [Hunter] Relay Coupler [Heavy] Heavy Disruptor Cannon KE Penetrator Heavy Flak Cannon Heavy Gauss Cannon Improved Proton Missile Launcher Remote Datajack Force Lance [Rating: 84] Favorites ----------- Power Improved Deuterium Engine Engine Improved Deuterium Engine Power Core Fission Core Reactor Antimatter Reactor Propulsion Wheel Treads Improved Heavy Treads Leg Aluminum Leg Wheel Wheel Utility Huge Storage Unit Device Advanced Transmission Jammer Storage Huge Storage Unit Processor Core Analyzer Hackware Relay Coupler [Grunt] Protection Hardened Medium Armor Plating Weapon Shock Rifle Energy Gun Shock Rifle Energy Cannon Particle Cannon Ballistic Gun Autogun Ballistic Cannon Heavy Flak Cannon Launcher Improved Proton Missile Launcher Special Weapon Remote Datajack Impact Weapon Power Maul Slashing Weapon Makeshift Sword Piercing Weapon Force Lance Special Melee Weapon Improved Datajack Build | -11 -10 -10 -9 -9 -8 -8 -8 -8 -7 -7 -6 -6 -6 -6 ------- Run | Jun Mat Min Mat Min Mat Gar Mat Gar Fac Gar Fac Gar Fac Gar Slots Evolved 8 | . . . 2 . 2 . . . 2 . 2 . . . Power . | . . . . . . . . . . . . . . . Propulsion . | . . . . . . . . . . . . . . . Utility 8 | . . . 2 . 2 . . . 2 . 2 . . . Weapon . | . . . . . . . . . . . . . . . Parts Attached 319 | 8 11 13 25 3 36 41 10 8 10 51 52 40 2 9 Power 25 | 2 1 . 4 . 1 2 2 . 1 4 4 3 . 1 Engine 17 | 2 1 . 4 . 1 1 2 . 1 3 . 1 . 1 Core 6 | . . . . . . 1 . . . . 3 2 . . Reactor 2 | . . . . . . . . . . 1 1 . . . Propulsion 27 | 2 3 . 4 . 3 2 1 . . 3 1 5 1 2 Treads 10 | . . . . . . . 1 . . 3 1 4 . 1 Leg 3 | 2 1 . . . . . . . . . . . . . Wheel 14 | . 2 . 4 . 3 2 . . . . . 1 1 1 Hover . | . . . . . . . . . . . . . . . Flight . | . . . . . . . . . . . . . . . Utility 117 | 2 2 3 6 . 12 12 2 2 4 25 27 15 1 4 Device 59 | 1 . . 2 . 4 4 . . 4 17 14 10 1 2 Storage 5 | 1 1 1 . . 1 . . . . . 1 . . . Processor 4 | . . . 2 . . . . . . 1 1 . . . Hackware 22 | . . . . . 2 5 1 1 . 5 5 2 . 1 Protection 27 | . 1 2 2 . 5 3 1 1 . 2 6 3 . 1 Artifact . | . . . . . . . . . . . . . . . Weapon 150 | 2 5 10 11 3 20 25 5 6 5 19 20 17 . 2 Energy Gun 62 | . 4 2 1 . 13 16 1 3 2 8 5 6 . 1 Energy Cannon 20 | . . . 6 2 3 1 . . . 3 4 . . 1 Ballistic Gun 7 | 2 . 5 . . . . . . . . . . . . Ballistic Cannon 17 | . . . . . . 3 2 2 . 4 2 4 . . Launcher 11 | . . . 3 1 1 1 . . . . 1 4 . . Special Weapon 19 | . 1 3 . . . . . . 1 4 8 2 . . Impact Weapon 3 | . . . . . . . 1 . 2 . . . . . Slashing Weapon 1 | . . . 1 . . . . . . . . . . . Piercing Weapon 1 | . . . . . . . . . . . . 1 . . Special Melee Weapon 9 | . . . . . 3 4 1 1 . . . . . . Unidentified Prototypes 3 | . . . . . . . 1 . . 1 1 . . . Parts Lost 46 | . . . 2 . 7 11 1 2 . 5 2 11 . 5 Power 7 | . . . . . 1 2 . . . 1 1 2 . . Propulsion 10 | . . . 1 . 2 2 1 . . . 1 1 . 2 Utility 13 | . . . . . 3 1 . 2 . 1 . 4 . 2 Weapon 16 | . . . 1 . 1 6 . . . 3 . 4 . 1 Highest Loss Streak 7 | . . . 2 . 2 7 1 2 . 3 1 4 . 2 To Critical Strikes . | . . . . . . . . . . . . . . . Average Slot Usage (%) 94 | . 99 99 98 100 97 98 98 99 95 91 92 87 93 91 Engine 6 | . 14 14 11 11 8 5 7 9 7 4 2 3 . . Core 1 | . . . . . . 3 1 . . . . 2 6 5 Treads 3 | . . . . . . . 7 9 7 7 5 5 11 4 Leg 1 | . 23 . . . . . . . . . . . . . Wheel 9 | . 4 28 21 22 17 17 9 9 7 . . 2 1 5 Device 8 | . 12 . 10 11 12 2 . . 10 8 11 6 13 12 Storage 8 | . 14 14 11 11 9 9 9 9 7 7 6 6 6 6 Processor 5 | . . . 10 11 9 4 . . . 5 10 6 6 6 Hackware 22 | . . . . . 12 24 35 35 30 29 29 38 33 33 Protection 7 | . 1 13 11 11 8 12 8 8 7 6 6 5 6 6 Energy Gun 6 | . 23 . 1 . 12 13 2 5 9 3 1 3 . . Energy Cannon 3 | . . . 19 21 5 . . . . 5 4 . . . Ballistic Gun 1 | . 3 25 . . . . . . . . . . . . Ballistic Cannon 2 | . . . . . . . 11 10 . 1 4 1 6 5 Special Weapon 1 | . . 2 . . . . . . 2 2 2 2 . . Naked Turns . | . . . . . . . . . . . . . . . Heaviest Build 131 | 13 36 38 45 45 104 110 108 108 109 130 131 124 115 116 Greatest Support 75 | 20 32 32 32 20 20 28 28 12 12 75 75 75 50 30 Greatest Overweight (x) 9 | . 1 1 2 2 5 9 8 8 9 9 1 4 6 7 Average Overweight (x) 2 | . . . 1 2 2 3 7 8 8 1 1 2 3 6 Largest Inventory Capacity 25 | 8 15 15 15 15 25 25 25 25 25 25 25 25 25 25 Average Capacity 21 | 7 14 15 15 15 17 25 25 25 25 25 25 25 25 25 Most Carried 25 | 8 15 15 15 15 21 25 25 24 25 25 25 25 25 25 Average Carried 20 | 5 12 14 14 15 15 22 23 23 24 24 24 24 24 24 Final Capacity 25 | 8 15 15 15 15 25 25 25 25 25 25 25 25 25 25 Final Carried 25 | 8 15 15 15 15 21 22 24 23 25 25 24 23 25 24 Class Distribution -------------------- 31% | Mutant 28% | Botlord-Mutant 25% | Bothacker-Mutant 6% | Commander-Mutant 6% | Hacker-Mutant Dominant Class ---------------- Mutant | -10/Materials Mutant | -10/Mines Mutant | -9/Materials Mutant | -9/Mines Mutant | -8/Materials Bothacker-Mutant | -8/Garrison Bothacker-Mutant | -8/Materials Bothacker-Mutant | -8/Garrison Bothacker-Mutant | -7/Factory Botlord-Mutant | -7/Garrison Botlord-Mutant | -6/Factory Botlord-Mutant | -6/Garrison Commander-Mutant | -6/Factory Mutant | -6/Garrison Resources | -11 -10 -10 -9 -9 -8 -8 -8 -8 -7 -7 -6 -6 -6 -6 ----------- Run | Jun Mat Min Mat Min Mat Gar Mat Gar Fac Gar Fac Gar Fac Gar Matter Collected 6064 | 308 138 380 299 40 355 510 299 213 40 1211 645 1088 136 402 Remotely . | . . . . . . . . . . . . . . . Salvage Created 8036 | 130 240 427 981 244 1531 660 338 185 40 1107 611 1097 30 415 Parts 410 | 11 19 19 54 14 76 38 22 23 2 41 26 43 3 19 Haulers Intercepted 3 | . 1 . 1 . 1 . . . . . . . . . Recyclers Shooed 1 | . . . 1 . . . . . . . . . . . Parts Field Recycled . | . . . . . . . . . . . . . . . Retrieved Matter . | . . . . . . . . . . . . . . . Parts Self-Destructed . | . . . . . . . . . . . . . . . Prevented . | . . . . . . . . . . . . . . . Kills | -11 -10 -10 -9 -9 -8 -8 -8 -8 -7 -7 -6 -6 -6 -6 ------- Run | Jun Mat Min Mat Min Mat Gar Mat Gar Fac Gar Fac Gar Fac Gar Combat Hostiles Destroyed 168 | . 6 11 20 8 27 18 10 15 . 12 10 20 . 11 Melee 3 | . . . . . . . . . . . . 3 . . Guns 59 | . 6 11 . . 16 11 5 . . 3 4 3 . . Cannons 71 | . . . 12 6 6 . 5 15 . 9 3 5 . 10 AOE 28 | . . . 6 2 2 6 . . . . 3 9 . . Classes Destroyed 14 | 2 4 1 1 . 3 1 . . . . 2 . . . Builder 4 | . . . . . 1 . 1 . . . 2 . . . Tunneler 3 | 3 . . . . . . . . . . . . . . Hauler 3 | . 1 . 1 . 1 . . . . . . . . . Recycler 8 | 1 . 1 1 . 3 . . . . . 2 . . . Watcher 14 | . 2 . 4 . 5 . . . 1 . 1 . 1 . Swarmer 55 | . 4 3 2 3 8 7 3 12 . 1 2 5 . 5 Grunt 58 | . 2 6 11 5 10 6 5 1 . 2 2 5 . 3 Brawler 2 | . . . . . 1 . . 1 . . . . . . Duelist 4 | . . . . . . . . . . . 1 3 . . Sentry 29 | . . . 7 . 7 2 2 . . 6 . 3 . 2 Specialist 1 | . . . . . . . . . . . 1 . . . Hunter 7 | . . . . . 1 1 . . . . 2 2 . 1 Programmer 10 | . . . . . . 2 . 1 . 3 2 2 . . Assembled 2 | . . 2 . . . . . . . . . . . . Best Kill Streak 12 | 3 3 3 4 5 12 5 5 6 1 6 8 4 1 5 Combat Bots Only 8 | . 3 3 3 5 8 5 5 6 . 6 4 4 . 5 Max Kills in Single Turn 7 | 1 1 2 2 2 4 4 1 2 1 1 7 2 1 1 Gunslinging 1 | . . . . . 1 1 . . . . . . . . Exploded 4 | . . . 2 2 1 4 . . . . 3 2 . . Melee 1 | . . . . . . . . . . . . 1 . . Uniques/NPCs Destroyed . | . . . . . . . . . . . . . . . Combat | -11 -10 -10 -9 -9 -8 -8 -8 -8 -7 -7 -6 -6 -6 -6 -------- Run | Jun Mat Min Mat Min Mat Gar Mat Gar Fac Gar Fac Gar Fac Gar Damage Taken 12091 | . 276 344 655 349 1085 1329 354 441 49 1786 1417 3109 85 812 Core 1883 | . 51 33 144 58 139 270 68 61 15 187 143 606 12 96 Absorbed by Shields 449 | . . . . . 261 . . . . 15 11 79 . 83 Reduced by Siege Mode 47 | . . . . . . . . . . 16 6 25 . . Redirected to Shielding 55 | . . . . . . 55 . . . . . . . . Regen/Repaired (Parts) 422 | . 37 . 136 . 249 . . . . . . . . . Core Remaining (%) 57 | 100 . 66 . 49 . . . 2 . 71 . . . . Volleys Fired 762 | 14 30 62 57 14 80 91 23 48 4 106 69 114 6 44 Largest 2 | 2 2 2 2 2 2 2 2 2 2 2 2 2 1 2 Hottest 225 | 40 100 100 136 136 143 146 120 104 120 186 225 225 60 134 Shots Fired 1118 | 28 58 89 106 28 160 127 43 70 5 125 96 127 6 50 Gun 532 | 28 56 54 16 . 102 119 13 29 2 24 19 64 . 6 Cannon 470 | . . . 85 27 56 7 30 41 . 88 49 37 6 44 Launcher 24 | . . . 5 1 2 1 . . . . 1 14 . . Special 92 | . 2 35 . . . . . . 3 13 27 12 . . Kinetic 305 | 28 28 54 . . . . 30 41 . 19 25 37 6 37 Thermal 444 | . 2 35 85 27 88 24 . . . 76 43 64 . . Explosive 9 | . . . 5 1 2 1 . . . . . . . . Electromagnetic 305 | . 28 . 16 . 70 102 13 29 2 17 1 14 . 13 Robot Hit Streak 19 | 6 12 3 19 8 14 16 9 7 2 14 8 13 2 5 Robot Miss Streak 10 | 6 4 3 3 1 3 3 8 10 1 2 6 4 1 5 Penetration Max 1 | . . . . . . . . . . 1 . 1 . . Secondary Targets 2 | . . . . . 1 1 . . . . . . . . Max Gunslinging Chain 1 | . . . . . 1 1 . . . . . . . . Shots Hit Robots 659 | 13 29 27 64 19 120 77 41 40 4 73 62 68 2 20 Core Hits 366 | 8 14 17 33 10 55 28 30 37 1 37 38 44 1 13 Critical Kills 8 | . . . 1 . . . . . . 5 2 . . . Critical Parts Destroyed 1 | . . . . . . . . . . 1 . . . . Critical Strikes 24 | . . . 1 . 1 4 . . . 7 2 4 . 5 Burn 3 | . . . . . . 3 . . . . . . . . Meltdown 2 | . . . 1 . . . . . . 1 . . . . Destroy 8 | . . . . . . . . . . 6 2 . . . Blast 8 | . . . . . . . . . . . . 3 . 5 Corrupt 2 | . . . . . 1 1 . . . . . . . . Impale 1 | . . . . . . . . . . . . 1 . . Melee Attacks 56 | . . . 5 . 1 16 8 6 4 . . 16 . . Impact 8 | . . . . . . . 1 3 4 . . . . . Slashing 5 | . . . 5 . . . . . . . . . . . Piercing 16 | . . . . . . . . . . . . 16 . . Sneak Attacks 19 | . . . 1 . . 11 5 1 . . . 1 . . Combat Hostiles 2 | . . . . . . 2 . . . . . . . . Follow-up Attacks . | . . . . . . . . . . . . . . . Damage Inflicted 16978 | 111 386 467 1682 488 2738 1347 599 613 82 2042 1984 3233 114 1092 Guns 4972 | 111 344 467 184 . 1450 939 209 101 82 254 324 453 . 54 Cannons 7926 | . . . 1018 388 946 76 359 512 . 1744 701 1030 114 1038 Explosions 3480 | . 42 . 367 100 342 332 31 . . 44 959 1263 . . Melee 600 | . . . 113 . . . . . . . . 487 . . Ramming . | . . . . . . . . . . . . . . . Kinetic 4414 | 111 146 467 . . . . 359 512 . 382 391 1030 114 902 Thermal 7060 | . 42 . 1018 388 1431 521 31 . . 1573 1408 648 . . Explosive 925 | . . . 367 100 292 166 . . . . . . . . Electromagnetic 3979 | . 198 . 184 . 1015 660 209 101 82 87 185 1068 . 190 Impact . | . . . . . . . . . . . . . . . Slashing 113 | . . . 113 . . . . . . . . . . . Piercing 487 | . . . . . . . . . . . . 487 . . Highest Corruption 8 | . . . . . . 3 3 8 . 4 2 4 4 4 Average Corruption 3 | . . . . . . 2 3 7 . 3 1 2 4 4 Corruption Purged . | . . . . . . . . . . . . . . . Corruption Blocked . | . . . . . . . . . . . . . . . Effects 237 | . . . . . . 47 12 28 . 29 38 44 18 21 Message Errors 65 | . . . . . . 14 4 9 . 6 8 8 9 7 Matter Fused 64 | . . . . . . 14 4 6 . 8 9 14 3 6 Heat Flow Errors 21 | . . . . . . 3 . 3 . 2 8 3 2 . Energy Discharges 31 | . . . . . . 6 1 2 . 5 5 8 . 4 Parts Rejected 1 | . . . . . . . . . . . . 1 . . Data Loss (minor) 27 | . . . . . . 4 2 7 . 4 3 4 2 1 Data Loss (major) 7 | . . . . . . 1 1 . . 2 2 . . 1 Misfires 6 | . . . . . . 1 . 1 . . 1 2 . 1 Alerts 9 | . . . . . . 1 . . . 1 2 3 2 . Weapon Failures 6 | . . . . . . 3 . . . 1 . 1 . 1 Overload Shots 2 | . . . . . . . . . . . 1 1 . . Effects 1 | . . . . . . . . . . . 1 . . . Heat Surge 1 | . . . . . . . . . . . 1 . . . Overflow Damage 379 | . . . 13 2 29 30 11 . . 7 196 78 13 . Projectiles 122 | . . . . 2 29 . . . . 7 20 51 13 . Explosions 217 | . . . . . . 30 11 . . . 176 . . . Melee 40 | . . . 13 . . . . . . . . 27 . . Knockbacks 60 | . . . . . . . 18 17 . 1 10 10 1 3 Impact . | . . . . . . . . . . . . . . . Kinetic 56 | . . . . . . . 17 15 . 1 10 9 1 3 Secondary 4 | . . . . . . . 1 2 . . . 1 . . Self-Inflicted Damage 130 | . 14 . . . 56 . . . . 41 . 19 . . Shots 6 | . 1 . . . 1 . . . . 1 . 3 . . Rammed . | . . . . . . . . . . . . . . . Targets Rammed . | . . . . . . . . . . . . . . . Kicked . | . . . . . . . . . . . . . . . Crushed . | . . . . . . . . . . . . . . . Highest Temperature 430 | . 90 314 159 207 314 372 252 175 54 430 355 315 196 203 Average Temperature 81 | . 24 115 38 85 71 102 78 43 30 113 97 62 53 33 Received Heat Transfer 2700 | . 69 93 237 84 347 291 162 27 18 439 42 759 . 132 Effects 13 | . . 1 . . 1 2 . . . 5 4 . . . Shutdowns 2 | . . . . . . . . . . 2 . . . . Energy Bleed 4 | . . 1 . . 1 1 . . . 1 . . . . Interference 6 | . . . . . . . . . . 2 4 . . . Damage (minor) 1 | . . . . . . 1 . . . . . . . . Siege Activations 4 | . . . . . . . . . . 1 2 1 . . Total Turns 30 | . . . . . . . . . . 16 3 11 . . Longest Duration 16 | . . . . . . . . . . 16 2 11 . . Robots Corrupted 6 | . . . 1 . 2 . . . . . . 2 . 1 Combat Hostiles 4 | . . . 1 . 2 . . . . . . . . 1 Parts Fried 14 | . . . 1 . 6 . 1 . 2 . . 2 . 2 Impact Corruptions . | . . . . . . . . . . . . . . . Robots Melted 4 | . . . 1 . 1 1 . . . 1 . . . . Combat Hostiles 3 | . . . 1 . 1 1 . . . . . . . . Parts Melted 36 | . . . 9 4 6 5 . . . 9 1 2 . . Heat Transferred 10270 | . 50 . 1739 666 2381 1001 50 . . 2185 1369 829 . . Parts Sabotaged . | . . . . . . . . . . . . . . . Parts Stolen . | . . . . . . . . . . . . . . . Parts Stripped . | . . . . . . . . . . . . . . . Power Chain Reactions 11 | . 1 . . . 2 2 1 . . 1 . 4 . . Missiles Intercepted . | . . . . . . . . . . . . . . . Alert | -11 -10 -10 -9 -9 -8 -8 -8 -8 -7 -7 -6 -6 -6 -6 ------- Run | Jun Mat Min Mat Min Mat Gar Mat Gar Fac Gar Fac Gar Fac Gar Peak Influence 1537 | 20 173 141 538 326 514 1537 812 734 409 1311 692 1399 763 696 Initial 748 | . 13 18 . 143 126 . 748 341 385 71 688 80 734 420 Average 427 | 9 52 54 361 266 189 703 625 563 292 544 302 688 668 576 Maximum Alert Level 4 | . . . 2 1 2 4 3 3 2 4 2 4 3 2 Low Security (%) 31 | 100 100 100 11 3 63 14 . . 8 7 50 9 . . Level 1 21 | . . . 47 97 20 15 . 17 70 34 19 21 . . Level 2 29 | . . . 40 . 15 15 65 56 20 32 29 31 46 100 Level 3 11 | . . . . . . 37 34 25 . 17 . 13 53 . Level 4 6 | . . . . . . 17 . . . 9 . 23 . . Level 5 . | . . . . . . . . . . . . . . . High Security . | . . . . . . . . . . . . . . . Max Security . | . . . . . . . . . . . . . . . Squads Dispatched 24 | . 2 . 3 . . . 2 . 2 . 12 . 3 . Investigation 9 | . 1 . 3 . . . . . . . 4 . 1 . Extermination 7 | . . . . . . . . . 1 . 5 . 1 . Reinforcement 6 | . 1 . . . . . 2 . 1 . 2 . . . Assault 2 | . . . . . . . . . . . 1 . 1 . Garrison . | . . . . . . . . . . . . . . . Intercept . | . . . . . . . . . . . . . . . Searches Triggered . | . . . . . . . . . . . . . . . Construction Impeded . | . . . . . . . . . . . . . . . Haulers Reinforced . | . . . . . . . . . . . . . . . Active Scanning Responses . | . . . . . . . . . . . . . . . Cargo Convoy Interrupts . | . . . . . . . . . . . . . . . Alert ID Control Effect 39 | . . . . . . 1 1 . . 1 12 12 5 7 Stealth | -11 -10 -10 -9 -9 -8 -8 -8 -8 -7 -7 -6 -6 -6 -6 --------- Run | Jun Mat Min Mat Min Mat Gar Mat Gar Fac Gar Fac Gar Fac Gar Distress Signals 12 | . . . 2 . 2 6 . . . . 2 . . . Communications Jammed 5 | . . . . . . . . . . . 5 . . . Distress Signals 5 | . . . . . . . . . . . 5 . . . Times Spotted 329 | . 23 17 35 10 41 28 16 18 3 30 37 43 5 23 Peak Tracking Total 8 | . 5 3 4 3 5 6 4 7 2 6 6 6 2 8 Tactical Retreats 23 | . 2 2 2 . 2 3 . 2 . 2 1 4 . 3 Traps | -11 -10 -10 -9 -9 -8 -8 -8 -8 -7 -7 -6 -6 -6 -6 ------- Run | Jun Mat Min Mat Min Mat Gar Mat Gar Fac Gar Fac Gar Fac Gar Traps Triggered 31 | . 1 . 1 . 2 4 . 1 . 8 1 8 1 4 Indirectly 3 | . . . . . . . . . . . . 3 . . Trap Hack Attempts 105 | . . . . . 36 28 41 . . . . . . . Triggered . | . . . . . . . . . . . . . . . Disarmed 1 | . . . . . . . 1 . . . . . . . Reprogrammed 16 | . . . . . 6 2 2 . . . 6 . . . Reused 4 | . . . . . 2 . . . . . 1 1 . . Traps Extracted 2 | . . . . . . 2 . . . . . . . . Installed 2 | . . . . . . . . . . . 1 1 . . Triggered 6 | . . . . . 2 1 . . . . 1 2 . . Most Traps Carried 2 | . . . . . . 2 2 2 2 2 2 1 . . Machines | -11 -10 -10 -9 -9 -8 -8 -8 -8 -7 -7 -6 -6 -6 -6 ---------- Run | Jun Mat Min Mat Min Mat Gar Mat Gar Fac Gar Fac Gar Fac Gar Machines Disabled 27 | . . . 1 . . 5 . 1 . 5 3 9 1 2 Max in Single Turn 2 | . . . . . . 1 . 1 . 1 2 1 . 1 Garrison Relay 17 | . . . . . . 4 . 1 . 5 . 5 . 2 Machines Repaired . | . . . . . . . . . . . . . . . Machines Sabotaged . | . . . . . . . . . . . . . . . Overloaded Fab Kills . | . . . . . . . . . . . . . . . Hacking | -11 -10 -10 -9 -9 -8 -8 -8 -8 -7 -7 -6 -6 -6 -6 --------- Run | Jun Mat Min Mat Min Mat Gar Mat Gar Fac Gar Fac Gar Fac Gar Machines Accessed 85 | . 10 . 17 . 19 4 4 . 3 2 19 2 4 1 Terminals 55 | . 7 . 11 . 12 4 3 . 1 2 11 2 1 1 Fabricators 3 | . . . . . . . . . . . 2 . 1 . Repair Stations 5 | . 1 . 2 . 2 . . . . . . . . . Recycling Units 9 | . 2 . 2 . 2 . . . . . 3 . . . Scanalyzers 8 | . . . 2 . 2 . . . 1 . 2 . 1 . Garrison Access 5 | . . . . . 1 . 1 . 1 . 1 . 1 . Total Hacks 304 | . 42 . 55 . 114 11 10 . 5 3 50 4 7 3 Successful 173 | . 27 . 34 . 70 6 4 . 2 2 23 2 3 . Failed 128 | . 14 . 20 . 43 5 6 . 3 1 27 2 4 3 Catastrophic 14 | . . . 2 . 2 1 1 . . 1 5 . 1 1 Database Lockouts 3 | . 1 . 1 . 1 . . . . . . . . . Manual 133 | . 30 . 29 . 61 5 . . . . 7 . 1 . Terminals 199 | . 30 . 33 . 71 11 8 . 2 3 32 4 2 3 Fabricators 7 | . . . . . . . . . . . 5 . 2 . Repair Stations 22 | . 4 . 6 . 12 . . . . . . . . . Recycling Units 34 | . 8 . 8 . 12 . . . . . 6 . . . Scanalyzers 30 | . . . 8 . 12 . . . 2 . 6 . 2 . Garrison Access 12 | . . . . . 7 . 2 . 1 . 1 . 1 . Terminal Hacks 55 | . 9 . 8 . 18 4 2 . . 2 10 2 . . Part Schematic 3 | . . . . . . . . . . . 3 . . . Robot Analysis 7 | . 3 . 1 . 3 . . . . . . . . . Prototype ID Bank 6 | . 1 . 2 . 3 . . . . . . . . . Open Door 2 | . . . . . . 1 . . . 1 . . . . Branch Access Points 2 | . 1 . 1 . . . . . . . . . . . Emergency Access Points 3 | . . . . . . 1 . . . 1 . 1 . . Terminal Index 5 | . 1 . 1 . 1 . 1 . . . 1 . . . Garrison Index 1 | . . . . . . . . . . . 1 . . . Unreport Threat 7 | . . . 1 . 4 . 1 . . . 1 . . . Locate Traps 8 | . 1 . 1 . 3 . . . . . 3 . . . Reprogram Traps 2 | . . . . . 1 . . . . . 1 . . . Security Status 1 | . . . . . 1 . . . . . . . . . Recall Reinforcements 1 | . 1 . . . . . . . . . . . . . Hauler Manifests 3 | . 1 . 1 . 1 . . . . . . . . . Zone Layout 1 | . . . . . 1 . . . . . . . . . Patrol Navigation 2 | . . . . . . 1 . . . . . 1 . . Security Stations 1 | . . . . . . 1 . . . . . . . . Fabricator Hacks 3 | . . . . . . . . . . . 3 . . . Load Schematic 1 | . . . . . . . . . . . 1 . . . Build 2 | . . . . . . . . . . . 2 . . . Repair Station Hacks 20 | . 4 . 6 . 10 . . . . . . . . . Scan Component 10 | . 2 . 3 . 5 . . . . . . . . . Repair 10 | . 2 . 3 . 5 . . . . . . . . . Recycling Unit Hacks 9 | . 3 . 2 . 3 . . . . . 1 . . . Report Inventory 6 | . 2 . 2 . 2 . . . . . . . . . Retrieve Components 3 | . 1 . . . 1 . . . . . 1 . . . Scanalyzer 27 | . . . 7 . 12 . . . 1 . 6 . 1 . Insert Component 13 | . . . 3 . 5 . . . 1 . 3 . 1 . Analyze 14 | . . . 4 . 7 . . . . . 3 . . . Garrison Access Hacks 6 | . . . . . 1 . 2 . 1 . 1 . 1 . Unlock Access 5 | . . . . . 1 . 1 . 1 . 1 . 1 . Coupler Status 1 | . . . . . . . 1 . . . . . . . Unauthorized Hacks 53 | . 11 . 11 . 26 2 . . . . 2 . 1 . Terminals 39 | . 9 . 7 . 18 2 . . . . 2 . 1 . Track 11 | . 3 . . . 7 1 . . . . . . . . Assimilate 7 | . 1 . 3 . 3 . . . . . . . . . Botnet 18 | . 4 . 3 . 7 1 . . . . 2 . 1 . Operators 3 | . 1 . 1 . 1 . . . . . . . . . Fabricators . | . . . . . . . . . . . . . . . Repair Stations . | . . . . . . . . . . . . . . . Recycling Units 11 | . 2 . 4 . 5 . . . . . . . . . Reject 4 | . 1 . 1 . 2 . . . . . . . . . Recyclers 1 | . . . . . 1 . . . . . . . . . Mask 3 | . . . 1 . 2 . . . . . . . . . Tunnel 3 | . 1 . 2 . . . . . . . . . . . Scanalyzers . | . . . . . . . . . . . . . . . Garrison Access 3 | . . . . . 3 . . . . . . . . . Broadcast 1 | . . . . . 1 . . . . . . . . . Redirect 1 | . . . . . 1 . . . . . . . . . Watchers 1 | . . . . . 1 . . . . . . . . . Data Cores Recovered 2 | . . . 1 . . . 1 . . . . . . . Used 1 | . . . . . . . 1 . . . . . . . Hacking Detections 77 | . 8 . 17 . 17 3 4 . 3 2 17 2 3 1 Full Trace Events 7 | . . . 1 . . . . . . 1 3 . 1 1 Feedback Events . | . . . . . . . . . . . . . . . Feedback Blocked . | . . . . . . . . . . . . . . . Robot Schematics Acquired . | . . . . . . . . . . . . . . . Robots Built . | . . . . . . . . . . . . . . . Authchips . | . . . . . . . . . . . . . . . Time . | . . . . . . . . . . . . . . . Total Robot Build Rating . | . . . . . . . . . . . . . . . Part Schematics Acquired 14 | . . . 3 . 5 . . . . . 6 . . . Parts Built 4 | . . . . . . . . . . . 4 . . . Authchips . | . . . . . . . . . . . . . . . Time 94 | . . . . . . . . . . . 94 . . . Total Part Build Rating 20 | . . . . . . . . . . . 20 . . . Parts Repaired 10 | . 2 . 3 . 5 . . . . . . . . . Time 360 | . 52 . 96 . 212 . . . . . . . . . Parts Recycled . | . . . . . . . . . . . . . . . Recycled Matter . | . . . . . . . . . . . . . . . Retrieved Matter . | . . . . . . . . . . . . . . . Retrieved Components 22 | . 10 . . . 3 . . . . . 9 . . . Parts Scanalyzed 12 | . . . 3 . 5 . . . . . 3 . 1 . Part Schematics Acquired 11 | . . . 3 . 5 . . . . . 3 . . . Parts Damaged . | . . . . . . . . . . . . . . . Bothacking | -11 -10 -10 -9 -9 -8 -8 -8 -8 -7 -7 -6 -6 -6 -6 ------------ Run | Jun Mat Min Mat Min Mat Gar Mat Gar Fac Gar Fac Gar Fac Gar Used RIF Installer 6 | . . . . . . 2 . 1 . 1 . 2 . . Threat Obfuscator 2 | . . . . . . . . . . 1 . 1 . . Robot Detection 1 | . . . . . . . . 1 . . . . . . Alert ID Control 1 | . . . . . . 1 . . . . . . . . Autoassimilate 1 | . . . . . . . . . . . . 1 . . Robots Hacked 42 | . . . . . . 5 3 1 1 9 14 7 1 1 Non-combat 11 | . . . . . . 1 2 . 1 . 7 . . . Combat 31 | . . . . . . 4 1 1 . 9 7 7 1 1 Autoassimilated 2 | . . . . . . . . . . . . . 1 1 Robot Hacks Applied 44 | . . . . . . 5 4 1 2 9 16 7 . . parse_system 2 | . . . . . . . . . . . 2 . . . no_distress 1 | . . . . . . . 1 . . . . . . . find_chute 1 | . . . . . . . . . . . 1 . . . ignore_repairs 7 | . . . . . . . 2 . . . 5 . . . find_station 1 | . . . . . . . . . 1 . . . . . overload_power 1 | . . . . . . . . . . . . 1 . . amplify_resonance 7 | . . . . . . . . . . 3 2 2 . . streamctrl_high 4 | . . . . . . . 1 . . 3 . . . . formatsys_low 1 | . . . . . . . . . 1 . . . . . formatsys_high 19 | . . . . . . 5 . 1 . 3 6 4 . . Relay Couplers Released 67 | . . . . . . 16 . 4 . 17 . 21 . 9 Machine Destruction 67 | . . . . . . 16 . 4 . 17 . 21 . 9 Attached 19 | . . . . . . 5 1 1 . 5 4 2 . 1 Fabnet Peak Effective % . | . . . . . . . . . . . . . . . Robots Rewired 8 | . . . . . . 3 . . . . . 5 . . Allies Hacked 2 | . . . . . . . . . . . 2 . . . Hacks Repelled . | . . . . . . . . . . . . . . . Allies | -11 -10 -10 -9 -9 -8 -8 -8 -8 -7 -7 -6 -6 -6 -6 -------- Run | Jun Mat Min Mat Min Mat Gar Mat Gar Fac Gar Fac Gar Fac Gar Total Allies 42 | . 1 2 1 . 1 8 1 1 1 9 6 9 1 1 Largest Group 7 | . 1 2 2 2 1 6 4 1 1 4 3 7 6 5 Highest-Rated Group 280 | . 10 53 41 41 26 146 116 16 23 204 73 278 278 280 Highest-Rated Ally 119 | . 10 31 31 31 26 39 39 16 23 80 41 119 119 119 Total Orders 78 | . 4 2 4 1 4 22 . . . 3 9 23 3 3 STAY 40 | . 2 1 2 1 2 12 . . . 2 5 11 1 1 ROAM 1 | . . . . . . . . . . . . 1 . . FOLLOW 37 | . 2 1 2 . 2 10 . . . 1 4 11 2 2 Ally Attacks 348 | . . 9 37 1 . 26 28 3 . 43 58 85 21 37 Total Damage 9125 | . . 127 546 20 . 675 422 29 . 1611 1773 1820 801 1301 Kills 71 | . . 3 10 . . 4 4 . . 7 12 13 8 10 Allies Corrupted . | . . . . . . . . . . . . . . . Allies Melted 1 | . . . . . . . . . . . 1 . . . Intel | -11 -10 -10 -9 -9 -8 -8 -8 -8 -7 -7 -6 -6 -6 -6 ------- Run | Jun Mat Min Mat Min Mat Gar Mat Gar Fac Gar Fac Gar Fac Gar Robot Analysis Total 7 | . 3 . 1 . 3 . . . . . . . . . Derelict Logs Recovered 1 | . . 1 . . . . . . . . . . . . Drone Launches . | . . . . . . . . . . . . . . . Drone Recoveries . | . . . . . . . . . . . . . . . Exploration | -11 -10 -10 -9 -9 -8 -8 -8 -8 -7 -7 -6 -6 -6 -6 ------------- Run | Jun Mat Min Mat Min Mat Gar Mat Gar Fac Gar Fac Gar Fac Gar Turns Passed 25336 | 164 1578 1216 2200 300 2888 2730 1006 843 872 2904 3731 3335 747 822 Spaces Moved 11769 | 92 752 785 1659 205 1653 1579 304 289 331 1043 1282 1213 260 322 Core 5 | 5 . . . . . . . . . . . . . . Treads 3063 | . . . . . . . . . . 984 1282 622 171 4 Legs 649 | 87 562 . . . . . . . . . . . . . Wheels 8052 | . 190 785 1659 205 1653 1579 304 289 331 59 . 591 89 318 Hover . | . . . . . . . . . . . . . . . Flight . | . . . . . . . . . . . . . . . Fastest Speed 50 | 50 100 100 105 110 95 125 140 210 210 210 240 145 190 145 Average Speed 170 | 116 168 114 106 110 116 145 205 210 212 239 240 224 270 196 Slowest Speed 385 | 120 190 115 130 110 155 215 210 210 225 240 240 385 312 385 Overloaded Moves . | . . . . . . . . . . . . . . . Propulsion Burnouts . | . . . . . . . . . . . . . . . Robots Hopped . | . . . . . . . . . . . . . . . Cave-ins Triggered . | . . . . . . . . . . . . . . . Exploration Rate (%) 58 | 6 99 99 97 55 90 92 29 34 11 89 35 85 12 47 Regions Visited 14 Branch Regions 2 Pre-discovered Areas 4 | . 1 1 2 . . . . . . . . . . . Known Exits Taken 7 | . 1 . 1 . 1 . 1 . 1 . 1 . 1 . Unknown Exits Taken 3 | 1 . 1 . 1 . . . . . . . . . . Scrap Searched 3 | . . 2 . 1 . . . . . . . . . . Spaces Dug 43 | . 2 . 10 . . . 1 3 4 6 6 . 3 8 Terrain Destroyed 183 | . 4 7 43 8 25 7 4 3 4 10 26 23 4 15 Melee 11 | . . . 3 . . . 1 3 4 . . . . . Projectile 79 | . 2 7 7 . 10 . . . . 9 16 9 4 15 AOE 93 | . 2 . 33 8 15 7 3 . . 1 10 14 . . Terrain Rammed . | . . . . . . . . . . . . . . . Walls Destroyed . | . . . . . . . . . . . . . . . Machines Disabled . | . . . . . . . . . . . . . . . Actions | -11 -10 -10 -9 -9 -8 -8 -8 -8 -7 -7 -6 -6 -6 -6 --------- Run | Jun Mat Min Mat Min Mat Gar Mat Gar Fac Gar Fac Gar Fac Gar Total 15778 | 123 1010 947 1987 250 2446 1874 637 448 485 1337 1843 1654 294 443 Wait 2337 | . 188 79 208 29 593 71 245 99 124 45 398 193 14 51 Move 11758 | 91 751 784 1658 204 1652 1578 304 287 331 1042 1282 1212 260 322 Hop . | . . . . . . . . . . . . . . . Pick Up 180 | 9 17 4 17 . 32 25 3 . 7 30 15 13 2 6 Fast Attach 55 | 7 3 1 3 . 2 4 3 1 2 6 16 5 1 1 Attach 80 | . 4 1 6 . 11 12 . 1 2 16 5 16 . 6 Detach 13 | . 2 . 1 . . 1 . . . 4 . 4 . 1 Swap 184 | 1 4 11 16 3 23 25 7 6 6 29 31 19 1 2 Drop 136 | 1 11 5 16 . 16 13 3 . 5 33 25 6 1 1 Fire 762 | 14 30 62 57 14 80 91 23 48 4 106 69 114 6 44 Melee 56 | . . . 5 . 1 16 8 6 4 . . 16 . . Ram . | . . . . . . . . . . . . . . . Kick . | . . . . . . . . . . . . . . . Crush . | . . . . . . . . . . . . . . . Escape Stasis 77 | . . . . . . 8 . . . 26 . 26 8 9 Rewire 33 | . . . . . . 2 . . . . 1 29 1 . Trap 107 | . . . . . 36 28 41 . . . 1 1 . . Miscellaneous . | . . . . . . . . . . . . . . . Route ------- -11/Junkyard -10/Materials (discovered 4 exits: *Mat x3 / *Min) -10/Mines (discovered 2 exits: *Mat x2) -9/Materials (discovered 5 exits: *Mat x3 / *Min x2) -9/Mines (discovered 3 exits: *Mat x2 / [*Exi]) -8/Materials (discovered 4 exits: *Fac x3 / Gar) -8/Garrison (discovered 3 exits: *Mat x3) -8/Materials -8/Garrison -7/Factory -7/Garrison (discovered 3 exits: *Fac x3) -6/Factory (discovered 4 exits: [*Fac x2] / [*Low] / Gar) -6/Garrison (discovered 3 exits: *Fac x3) -6/Factory -6/Garrison (discovered 1 exit: [*Fac]) History --------- Turn | Location | Event 28 | -11/Junkyard | Discovered new exit (range 15) 165 | -11/Junkyard | Entered Materials 303 | -10/Materials | Build established: Mutant 464 | -10/Materials | Central database locked down 553 | -10/Materials | Discovered new exit (range 13) 855 | -10/Materials | Discovered new exit (range 3) 931 | -10/Materials | Repaired EM Pulse Gun 995 | -10/Materials | Identified exit to Mines 1242 | -10/Materials | Discovered new exit (range 15) 1463 | -10/Materials | Repaired Com. Wheel 1743 | -10/Materials | Entered Mines 1743 | -10/Mines | Accompanied by 1 ally 1773 | -10/Mines | Discovered new exit (range 5) 1824 | -10/Mines | Discovered new exit (range 10) 1904 | -10/Mines | Excavation squad dispatched 1904 | -10/Mines | A large section of the Mines collapsed 2668 | -10/Mines | Learned location of Recycling (-7) 2959 | -10/Mines | Entered Materials 2959 | -9/Materials | Accompanied by 1 ally 2959 | -9/Materials | Evolved 2 slots: Utility x2 2959 | -9/Materials | Discovered new exit (range 7) 2964 | -9/Materials | Led the pair of lost Derelicts to an unsafe place 3205 | -9/Materials | Discovered new exit (range 11) 3532 | -9/Materials | Discovered new exit (range 16) 3893 | -9/Materials | Central database locked down 3893 | -9/Materials | Identified exit to Mines 4030 | -9/Materials | Discovered new exit (range 9) 4631 | -9/Materials | Discovered new exit (range 15) 4862 | -9/Materials | Repaired Med. Armor Plating 4889 | -9/Materials | Repaired Wheel 5014 | -9/Materials | Repaired Imp. Heat Sink 5159 | -9/Materials | Entered Mines 5159 | -9/Mines | Accompanied by 2 allies 5239 | -9/Mines | Deemed a non-threat by the Exiles lab entrance 5239 | -9/Mines | Discovered new exit (range 5) 5329 | -9/Mines | Discovered new exit (range 9) 5398 | -9/Mines | Discovered new exit (range 8) 5408 | -9/Mines | Assembled infested the area 5454 | -9/Mines | Core integrity fell below 50% 5459 | -9/Mines | Entered Materials 5459 | -8/Materials | Evolved 2 slots: Utility x2 5692 | -8/Materials | Central database locked down 5968 | -8/Materials | Discovered new exit (range 16) 6914 | -8/Materials | Destroyed 8 combat bots 7232 | -8/Materials | Discovered new exit (range 16) 7445 | -8/Materials | Identified exit to Garrison 7517 | -8/Materials | Build established: Hacker-Mutant 7552 | -8/Materials | Discovered new exit (range 16) 8037 | -8/Materials | Repaired Hardlight Generator 8076 | -8/Materials | Repaired Flak Cannon 8115 | -8/Materials | Repaired Hrd. Medium Armor Plating 8154 | -8/Materials | Repaired Imp. Heat Sink 8215 | -8/Materials | Repaired Prc. Beam Rifle 8347 | -8/Materials | Entered Garrison 8347 | -8/Garrison | Accompanied by 1 ally 8366 | -8/Garrison | Garrison Relay disabled 8507 | -8/Garrison | Triggered checkpoint 8534 | -8/Garrison | Garrison Relay disabled 8852 | -8/Garrison | Installed Relay Interface Framework 8956 | -8/Garrison | Triggered checkpoint 8990 | -8/Garrison | Expanded RIF knowledge: Alert ID Control 9022 | -8/Garrison | Discovered new exit (range 10) 9140 | -8/Garrison | Triggered checkpoint 9160 | -8/Garrison | Build established: Bothacker-Mutant 9366 | -8/Garrison | Triggered checkpoint 9672 | -8/Garrison | Triggered checkpoint 9716 | -8/Garrison | Garrison Relay disabled 9717 | -8/Garrison | Lost 3 parts (1n2w) 9769 | -8/Garrison | Discovered new exit (range 5) 9837 | -8/Garrison | Spotted B-75 Beast 9858 | -8/Garrison | Core integrity fell below 50% 9909 | -8/Garrison | Lost 7 parts (2p1n1u3w) 10612 | -8/Garrison | Learned Materials security intel 10916 | -8/Garrison | Discovered new exit (range 9) 10964 | -8/Garrison | Triggered checkpoint 10965 | -8/Garrison | Garrison Relay disabled 11077 | -8/Garrison | Entered Materials 11077 | -8/Materials | Accompanied by 4 allies 11529 | -8/Materials | Core integrity fell below 20% 12083 | -8/Materials | Identified exit to Garrison 12083 | -8/Materials | Entered Garrison 12190 | -8/Garrison | Triggered checkpoint 12231 | -8/Garrison | Garrison Relay disabled 12300 | -8/Garrison | Expanded RIF knowledge: Robot Detection 12678 | -8/Garrison | Triggered checkpoint 12695 | -8/Garrison | Triggered checkpoint 12834 | -8/Garrison | Discovered new exit (range 8) 12926 | -8/Garrison | Entered Factory 12926 | -7/Factory | Evolved 2 slots: Utility x2 13798 | -7/Factory | Identified exit to Garrison 13798 | -7/Factory | Entered Garrison 13798 | -7/Garrison | Accompanied by 1 ally 13826 | -7/Garrison | Found embedded Infiltrators 13884 | -7/Garrison | Triggered checkpoint 14151 | -7/Garrison | Garrison Relay disabled 14516 | -7/Garrison | Triggered checkpoint 14536 | -7/Garrison | Triggered checkpoint 14606 | -7/Garrison | Lost 3 parts (1u2w) 14946 | -7/Garrison | Discovered new exit (range 10) 15053 | -7/Garrison | Expanded RIF knowledge: Threat Obfuscation 15280 | -7/Garrison | Discovered new exit (range 9) 15351 | -7/Garrison | Build established: Botlord-Mutant 15454 | -7/Garrison | Triggered checkpoint 15864 | -7/Garrison | Discovered new exit (range 11) 15931 | -7/Garrison | Garrison Relay disabled 16106 | -7/Garrison | Triggered checkpoint 16143 | -7/Garrison | Garrison Relay disabled 16188 | -7/Garrison | Rescued a captive Derelict 16440 | -7/Garrison | Garrison Relay disabled 16512 | -7/Garrison | Garrison Relay disabled 16702 | -7/Garrison | Entered Factory 16702 | -6/Factory | Accompanied by 3 allies 16702 | -6/Factory | Evolved 2 slots: Utility x2 17052 | -6/Factory | First assault squad dispatched 19179 | -6/Factory | Discovered new exit (range 9) 19594 | -6/Factory | Discovered new exit (range 11) 19655 | -6/Factory | Fabricated EM Disruption Field? 20292 | -6/Factory | Discovered new exit (range 15) 20373 | -6/Factory | Fabricated Fission Core (x2) 20433 | -6/Factory | Identified exit to Garrison 20433 | -6/Factory | Entered Garrison 20433 | -6/Garrison | Accompanied by 2 allies 20460 | -6/Garrison | Triggered checkpoint 20528 | -6/Garrison | Triggered checkpoint 20603 | -6/Garrison | Garrison Relay disabled 20762 | -6/Garrison | Triggered checkpoint 20957 | -6/Garrison | Garrison Relay disabled 21036 | -6/Garrison | Discovered new exit (range 13) 21469 | -6/Garrison | Triggered checkpoint 21480 | -6/Garrison | Triggered checkpoint 21878 | -6/Garrison | Discovered new exit (range 9) 21956 | -6/Garrison | Garrison Relay disabled 22157 | -6/Garrison | Spotted B-75 Beast 22306 | -6/Garrison | Spotted Striker 22306 | -6/Garrison | Spotted Striker 22530 | -6/Garrison | Discovered new exit (range 12) 22534 | -6/Garrison | Triggered checkpoint 22572 | -6/Garrison | Expanded RIF knowledge: Threat Obfuscation 22636 | -6/Garrison | Core integrity fell below 50% 22654 | -6/Garrison | Triggered checkpoint 22673 | -6/Garrison | Lost 4 parts (1p1u2w) 22725 | -6/Garrison | Garrison Relay disabled 22831 | -6/Garrison | Triggered checkpoint 22874 | -6/Garrison | Garrison Relay disabled 22983 | -6/Garrison | Build established: Commander-Mutant 22990 | -6/Garrison | Expanded RIF knowledge: Autoassimilate 23697 | -6/Garrison | Core integrity fell below 20% 23699 | -6/Garrison | Allies destroyed Striker 23709 | -6/Garrison | Allies destroyed Striker 23725 | -6/Garrison | Rewired Executioner 23768 | -6/Garrison | Entered Factory 23768 | -6/Factory | Accompanied by 6 allies 24254 | -6/Factory | Build established: Mutant 24468 | -6/Factory | First assault squad dispatched 24515 | -6/Factory | Identified exit to Garrison 24515 | -6/Factory | Entered Garrison 24515 | -6/Garrison | Accompanied by 4 allies 24607 | -6/Garrison | Build established: Commander-Mutant 24685 | -6/Garrison | Garrison Relay disabled 24738 | -6/Garrison | Triggered checkpoint 24803 | -6/Garrison | Found Corrupted Prototype Processor 24915 | -6/Garrison | Discovered new exit (range 3) 25078 | -6/Garrison | Build established: Mutant 25109 | -6/Garrison | Garrison Relay disabled 25322 | -6/Garrison | Spotted Striker 25323 | -6/Garrison | Spotted Striker 25337 | -6/Garrison | Destroyed by Striker with Plasma Lance Last Messages --------------- 25258_ Acquired Imp. Focal Shield. 25265_ System corrupted: Energy discharge (-63). 25273_ Acquired 43 matter. 25278_ Acquired 1 matter. 25283_ Slug penetrates Door. 25284_ Hvy. Assault Cannon destroyed. 25286_ System corrupted: Energy discharge (-84). 25286_ Y-54 Guardian destroyed. 25291_ Acquired 60 matter. 25294_ Acquired Lgt. Treads. 25298_ Acquired 4 matter. 25299_ Acquired Imp. Light Armor Plating. 25300_ C-30 ARC bursts open, deploying its payload. 25301_ Acquired 6 matter. 25304_ H-66 Slayer system terminally corrupted. 25304_ Targeting Computer fried. 25321_ Triggered Alarm Trap. 25321_ An alarm sounds. 25324_ Striker shuts down. 25325_ Arm. Huge Wheel destroyed. Map ----- +----------------------------------------------------+ | | | | | | | | | | | | | | | | | | | | | | | | | | | | | | | | | | | | | ??????????????????????????????????????????? | | ??????????????????????????????????????????? | | ??????????????????????????????????????????? | | ??????????????????????????????????????????? | | ??????????????????????????????????????????? | | ???????????????????#####???#####??????????? | | ???????????#x #####! [#???#! !#???????#### | | ???????????+x K K@%! [#???#! !#???????# | | ???????????#x #####! [#???#! #???????# | | ???????????????????## ##???## ########## ! | | ????????????????????#[#?????# " ! ! | | ????????????????????#[#?????# ###### ### ! | | ????????????????????#[#?????# #????# #?# | | ????????????????????#%#?????# #????# #?#### | | ???????????????????##*##???##"##???# #????? | | ???????????????????#=%[#???# #?### #????? | | ??????????????"#####= !##### ###T# #????? | | ???????! " ! ! [ #????? | | ?????????????##############"########%#????? | | ??????????????????????????###??????#%#????? | | ???????????????????????????????????# #????? | | ???????????????????????????????????# #????? | | ???????????????????????????????????# #????? | | ???????????????????????????????????# #????? | | ???????????????????????????????????# #????? | | ???????????????????????????????????# #????? | | ???????????????????????????????????# #????? | | ???????????????????????????????????# #????? | | ????????#############Y ###???####### ###### | | ????????# | | ????????# | | ????????# | +----------------------------------------------------+ Best States ------------- Heat Dissipation 65 Coolant Potential 100 Energy Generation 21 Energy Capacity 325 Matter Stores 300 Matter Capacity 300 Sight Range 18 Terrain Scan Range 20 Terrain Scan Density 210 Jamming Range 16 Armor Coverage 450 Resistance: KI 25 Resistance: TH 20 Propulsion Shielding 66 Phase Shifting 5 Evasion (%) 55 Targeting Accuracy 6 Core Analysis 6 Recoil Reduction 2 Particle Charging 25 Offensive Hacking 12 Defensive Hacking 20 Relay Coupler Types 5 Relay Coupler Value 98 Trap Extractor Capacity 8 Item Schematics ----------------- Imp. EM Shotgun | -9/Materials | Scanalyzed Adv. Beam Cannon | -9/Materials | Scanalyzed Prc. Beam Rifle | -9/Materials | Scanalyzed Arm. Wheel | -8/Materials | Scanalyzed Mak. Terrain Scan Processor | -8/Materials | Scanalyzed Mak. Sword | -8/Materials | Scanalyzed Hvy. Ion Engine | -8/Materials | Scanalyzed Grenade Launcher | -8/Materials | Scanalyzed Fission Core | -6/Factory | Hacked Hvy. Shock Bomb Launcher | -6/Factory | Hacked Remote Force Field | -6/Factory | Scanalyzed Adv. Particle Charger | -6/Factory | Scanalyzed Hvy. Disruptor Cannon | -6/Factory | Scanalyzed Micro-nuke Launcher | -6/Factory | Hacked Robot Schematics ------------------ None Fabricated ------------ EM Disruption Field | x2 | -6/Factory | Preloaded Fission Core | x2 | -6/Factory Alien Tech Used ----------------- None Achievements -------------- None Challenges ------------ None Game ------ Seed FortressVisualSpecial Manual? 0 Play Time 04:23:38 Cumulative 607.5 hours Start 2023.04.03 @ 17:23:16 End 2023.04.05 @ 01:53:48 Sessions 3 Manual Loads 0 Difficulty Rogue Special Mode None Game No. 418 Rogue 418 Adventurer 0 Explorer 0 Win Type - Total 1 Types 1/0/0/0/0/0/0/0/0 Lore% 70 Gallery% 78 Achievement% 58 Wizard Run 0 Options --------- ASCII 0 Keyboard 0 Movement Mouse Keybinds 0 Fullscreen 1 Font 16/SmallcapsGlow Map View 75x55 Tactical HUD 1 Map Filters NONE Filters NONE Steam 1 RUN: 75518b03-f3d9-418d-8869-7f9336f312ce